[Event "35th Roquetas Festival 2024"]
[Site "Roquetas de Mar"]
[Date "2024.01.02"]
[Round "1.5"]
[White "Stremavicius, Titas"]
[Black "Gomez Arce, Alejandro"]
[Result "1-0"]
[ECO "A46"]
[WhiteElo "2543"]
[BlackElo "2074"]
[Annotator "TA"]
[PlyCount "73"]
[EventDate "2024.01.02"]
[EventType "swiss"]
[EventCountry "ESP"]
[SourceTitle "playchess.com"]
[Source "ChessBase"]
[SourceQuality "1"]
[TimeControl "5400+30"]

{[%evp 9,73,13,47,14,20,3,31,23,4,12,17,19,18,24,17,20,35,32,34,39,36,35,51,48,42,-14,-12,-11,-21,-18,-6,-14,0,0,0,0,0,0,43,33,59,29,33,34,54,55,179,66,533,533,533,533,485,523,502,512,525,525,525,520,497,493,497,471,559,544]} 1. d4 {[%emt 0:09:39]} Nf6 {[%emt 0:00:25]} 2. Nf3 {[%emt 0:00:10]} d5 {[%emt 0:00:17]} 3. g3 {[%emt 0:00:14]} c5 {[%emt 0:00:24]} 4. Bg2 {[%emt 0:00:11]} e6 {[%emt 0:00:20][%cal Be7e6,Be6e5,Be5e4][%mdl 32]} 5. O-O {[%emt 0:00:09]} h6 {[%emt 0:02:49]} 6. b3 {[%emt 0:00:53] D02: 1 d4 d5 2 Nf3 sidelines, including 2...Nf6 3 g3 and 2...Nf6 3 Bf4.} cxd4 {[%emt 0:05:23]} 7. Nxd4 {[%emt 0:01:20]} Bc5 {[%emt 0:02:06]} 8. Bb2 {[%emt 0:00:45] White is slightly better.} O-O {[%emt 0:00:55]} 9. c4 {[%emt 0:01:26]} e5 {[%emt 0:01:53] Dodges e3} 10. Nf3 {[%emt 0:00:17]} e4 {[%emt 0:00:06]} 11. Nd4 {[%emt 0:01:31]} Nc6 {[%emt 0:01:44]} 12. cxd5 {[%emt 0:04:00]} Qxd5 {[%emt 0:00:23]} 13. Nxc6 {[%emt 0:00:08]} Qxc6 {[%emt 0:00:06]} 14. Nd2 {[%emt 0:01:15]} Rd8 {[%emt 0:30:34] Hoping for ...Bb4.} 15. Rc1 {[%emt 0:12:02] Strongly threatening Bxf6.} Qb6 {[%emt 0:02:40] ...e3 would be deadly.} 16. Bxf6 {[%emt 0:20:53]} (16. Bxe4 $2 {too greedy.} Nxe4 17. Nxe4 Rxd1 $19) 16... gxf6 {[%emt 0:01:58] [#]} 17. e3 $146 {[%emt 0:09:53] White is weak on the dark squares} (17. Bxe4 $14 Bh3 18. Qc2) ({Predecessor:} 17. Bxe4 Bh3 18. Bd3 Rac8 19. Rc4 f5 20. Nf3 Bxf1 21. Qxf1 Bd4 22. Ra4 Rc3 23. Bxf5 Kf8 24. Nxd4 Rxd4 25. Qe1 {½-½ Szczepanski,Z (2395)-Kahl,F (2412) ST-2021-0-00203}) 17... Bb4 $11 {[%emt 0:06:46]} 18. Rxc8 {[%emt 0:00:33][%mdl 64] Remove Defender, Decoy} Raxc8 {[%emt 0:01:51]} 19. Qg4+ {[%emt 0:00:10]} Kh8 {[%emt 0:09:15]} 20. Nxe4 {[%emt 0:01:10]} Bf8 {[%emt 0:05:28]} 21. Bh3 {[%emt 0:10:45]} Rc7 {[%emt 0:04:51][%cal Bc8c7,Bc7e7,Be7e5][%mdl 32]} 22. Qf4 {[%emt 0:04:22]} Bg7 {[%emt 0:02:39]} 23. Bf5 {[%emt 0:00:08]} Re7 {[%emt 0:01:31]} 24. Rc1 {[%emt 0:01:26][%mdl 1024] White has compensation.} Qa5 {[%emt 0:04:46]} 25. Rc2 {[%emt 0:00:53][%cal Oe4f6]} (25. Rc5 $5 {[%cal Rc5a5]} Qb6 26. Rc4 $14) 25... Re5 {[%emt 0:05:00]} 26. g4 {[%emt 0:00:34][%cal Oe4f6,Bg3g4,Bg4f5][%mdl 32]} Qb5 {[%emt 0:03:02]} 27. Kg2 {[%emt 0:01:29][%cal Oe4f6]} h5 {[%emt 0:01:23] [#]} 28. h3 {[%emt 0:00:45]} ({White should try} 28. Nxf6 $1 $18 {White wants to mate with Qg5.} hxg4 29. Bd7) 28... h4 $2 {[%emt 0:01:16][%mdl 8192] [#]} (28... hxg4 $14 29. Bxg4 (29. hxg4 Kg8 $14) 29... Qd5) 29. Nxf6 $1 $18 {[%emt 0:04:53][%cal Og4g5][%mdl 576] g5! would kill now. Decoy. White is clearly winning.} Rxf5 {[%emt 0:04:07]} 30. gxf5 {[%emt 0:00:08]} Bxf6 {[%emt 0:00:28]} 31. Qh6+ {[%emt 0:00:05]} Kg8 {[%emt 0:00:03] ...Qd5+ is the strong threat.} 32. Qxf6 {[%emt 0:00:13]} Qd5+ {[%emt 0:00:24]} 33. Kh2 {[%emt 0:00:38]} Qd6+ {[%emt 0:01:32]} 34. Qxd6 {[%emt 0:00:07]} Rxd6 {[%emt 0:00:02]} 35. Kg2 {[%emt 0:00:09]} Kg7 {[%emt 0:00:07]} 36. Kf3 {[%emt 0:00:09]} Kf6 {[%emt 0:00:22]} 37. Kf4 {[%emt 0:00:11] Excellently played by Stremavicius!   Weighted Error Value: White=0.12 (very precise) /Black=0.39} 1-0

[Event "35th Roquetas Festival 2024"]
[Site "Roquetas de Mar"]
[Date "2024.01.02"]
[Round "1.6"]
[White "Maldonado Mena, German"]
[Black "Fernandez, Daniel Howard"]
[Result "0-1"]
[ECO "E34"]
[WhiteElo "2074"]
[BlackElo "2525"]
[Annotator "TA"]
[PlyCount "107"]
[EventDate "2024.01.02"]
[EventType "swiss"]
[EventCountry "ESP"]
[SourceTitle "playchess.com"]
[Source "ChessBase"]
[SourceQuality "1"]
[TimeControl "5400+30"]

{[%evp 10,107,24,16,22,27,54,39,54,39,38,12,38,7,10,0,13,7,0,3,26,28,20,12,19,25,54,47,48,54,49,34,67,8,4,5,9,2,5,0,1,8,8,0,0,0,0,0,0,0,34,19,25,0,0,0,0,0,0,0,0,-13,-16,-21,-15,-20,-7,-26,-23,-667,0,0,0,0,0,0,0,0,0,-5,-6,-12,-13,-12832,-12833,-12834,-648,-584,-531,-12835,-12835,-5903,-2346,-12838,-12839,-12839,-12839,-12841,-12841,-12841]} 1. d4 {[%emt 0:00:02]} Nf6 {[%emt 0:09:37]} 2. c4 {[%emt 0:00:18]} e6 {[%emt 0:00:19]} 3. Nc3 {[%emt 0:00:19]} Bb4 {[%emt 0:00:03]} 4. Qc2 {[%emt 0:00:54]} d5 {[%emt 0:01:57]} 5. cxd5 {[%emt 0:03:25]} Qxd5 {[%emt 0:00:45]} 6. e3 {[%emt 0:00:46]} O-O {[%emt 0:04:01] E34: Nimzo-Indian: Classical: 4...d5.} 7. Bd2 {[%emt 0:00:54]} Qh5 {[%emt 0:00:47] [#]} 8. Be2 $146 {[%emt 0:05:47]} ({Predecessor:} 8. Nge2 Bd6 9. f4 Nc6 10. e4 Be7 11. a3 Ng4 12. g3 Rd8 13. h3 Nf6 14. Qd3 Nxd4 15. Nxd4 {½-½ Veinberg,N (2393)-Iliaguev,N (2388) ISR-chT Israel 2021 (11.4)}) 8... Qg6 {[%emt 0:00:05] White is slightly better.} 9. Qxg6 {[%emt 0:00:53]} hxg6 {[%emt 0:00:03]} 10. Ne4 {[%emt 0:13:04][%mdl 64] [#] Discovered Attack} a5 {[%emt 0:01:43]} 11. Nxf6+ {[%emt 0:00:33]} gxf6 {[%emt 0:00:02]} 12. Nf3 {[%emt 0:00:37]} Bd7 {[%emt 0:01:50]} 13. h4 {[%emt 0:01:39]} Bc6 {[%emt 0:00:25]} 14. h5 {[%emt 0:08:24]} gxh5 {[%emt 0:02:06]} 15. a3 {[%emt 0:04:01]} Bxd2+ {[%emt 0:05:03]} 16. Kxd2 {[%emt 0:00:10]} Kg7 {[%emt 0:00:10]} 17. Rxh5 {[%emt 0:00:13]} Rh8 {[%emt 0:01:17]} 18. Rxh8 {[%emt 0:07:16]} Kxh8 {[%emt 0:00:03]} 19. Rc1 {[%emt 0:19:12]} Kg7 {[%emt 0:00:42]} 20. g4 {[%emt 0:13:03]} a4 {[%emt 0:03:24]} 21. g5 {[%emt 0:00:21]} (21. Ne1 $14) 21... Nd7 $11 {[%emt 0:04:07]} 22. gxf6+ {[%emt 0:03:26]} Kxf6 {[%emt 0:00:05]} 23. Ne1 {[%emt 0:04:30]} Ke7 {[%emt 0:06:35]} 24. Nd3 {[%emt 0:00:49]} Kd6 {[%emt 0:00:13]} 25. Nb4 {[%emt 0:00:58]} Bd5 {[%emt 0:01:57]} 26. Nd3 {[%emt 0:03:23]} c6 {[%emt 0:16:40]} 27. f3 {[%emt 0:00:35]} Rh8 {[%emt 0:02:14]} 28. e4 {[%emt 0:00:59]} Bb3 {[%emt 0:00:05]} 29. Rc3 {[%emt 0:01:46]} e5 {[%emt 0:02:14]} 30. dxe5+ {[%emt 0:00:05]} Nxe5 {[%emt 0:00:09]} 31. Nc1 {[%emt 0:00:05]} (31. Nc5 $5 {[%cal Rc5b7]}) 31... Be6 {[%emt 0:01:50]} 32. f4 {[%emt 0:00:12]} Nd7 {[%emt 0:00:08]} 33. f5 {[%emt 0:02:08]} Bb3 {[%emt 0:01:44]} 34. Nxb3 {[%emt 0:00:06]} axb3 {[%emt 0:00:06]} 35. Rxb3 {[%emt 0:00:06][%mdl 4096] Endgame KRB-KRN} Nc5 {[%emt 0:00:16][%csl LRb3,LRe4]} 36. Rb4 {[%emt 0:01:10]} Ke5 {[%mdl 1024] Black has compensation.} 37. Ke3 {[%emt 0:00:11]} b5 {[%emt 0:06:14]} 38. Bf3 {[%emt 0:06:16]} Rh2 {[%emt 0:00:13]} 39. b3 $2 {[%emt 0:00:49][%mdl 8192]} (39. Be2 $11) 39... Ra2 $2 {[%emt 0:00:31]} (39... Rh3 $19 40. Kf2 Nd3+ 41. Kg2 Rh8) 40. a4 {[%emt 0:00:33]} bxa4 {[%emt 0:03:06]} 41. bxa4 {[%emt 0:00:15]} Ra3+ {[%emt 0:00:22]} 42. Ke2 {[%emt 0:00:06]} Nxa4 {[%emt 0:00:37]} 43. Rc4 {[%emt 0:00:21]} c5 {[%emt 0:00:14]} 44. Kf2 {[%emt 0:01:17]} Kf4 {[%emt 0:00:39]} 45. Be2 {[%emt 0:00:26]} Nc3 {[%emt 0:00:21]} 46. e5+ {[%mdl 8192]} (46. Bf3 $11) 46... Ne4+ $19 {[%emt 0:00:18] Black is clearly winning.} (46... Kxf5 47. Bd3+ Kxe5 48. Rxc5+ Kd4 49. Rf5 $15) 47. Kg1 {[%emt 0:01:03]} Kxe5 {[%emt 0:00:27]} (47... Ra1+ $142 48. Bf1 Kxf5) 48. Bh5 {[%emt 0:00:32]} f6 {[%emt 0:00:23] [#] ...Rg3+ would be deadly.} ({Worse is} 48... Kxf5 49. Bxf7 Ke5 50. Be8 $17) 49. Bg6 {[%emt 0:00:23]} Rc3 {[%emt 0:03:01]} 50. Ra4 {[%emt 0:00:15]} c4 {[%emt 0:01:09][%cal Bc5c4,Bc4c3][%mdl 32] Strongly threatening ...Rg3+.} 51. Bf7 {[%emt 0:00:53]} Rc1+ {[%emt 0:01:03]} ({Not} 51... Kxf5 52. Rxc4 Rg3+ 53. Kh2 $17) 52. Kg2 {[%emt 0:00:07]} c3 {[%emt 0:00:03]} ({Stronger than} 52... Kxf5 53. Rxc4 Re1 54. Bg8 $15) 53. Bb3 {[%emt 0:00:51]} Nc5 {[%emt 0:00:20]} 54. Ra5 {[%emt 0:00:19] Weighted Error Value: White=0.65/Black=0.24 (precise)} 0-1

[Event "35th Roquetas Festival 2024"]
[Site "Roquetas de Mar"]
[Date "2024.01.02"]
[Round "1.7"]
[White "Cuenca Jimenez, Jose Fernando"]
[Black "Castillo Rodriguez, Angel Luis"]
[Result "1/2-1/2"]
[ECO "E18"]
[WhiteElo "2514"]
[BlackElo "2055"]
[Annotator "TA"]
[PlyCount "61"]
[EventDate "2024.01.02"]
[EventType "swiss"]
[EventCountry "ESP"]
[SourceTitle "playchess.com"]
[Source "ChessBase"]
[SourceQuality "1"]
[TimeControl "5400+30"]

{[%evp 16,61,25,12,43,33,44,57,47,39,72,81,89,90,121,109,121,113,175,199,169,120,116,110,190,118,131,131,118,112,355,118,113,100,110,20,4,0,0,0,0,0,0,-215,-223,-250,-252,-246]} 1. d4 {[%emt 0:00:03]} Nf6 {[%emt 0:00:08]} 2. c4 {[%emt 0:00:11]} e6 {[%emt 0:00:08]} 3. Nf3 {[%emt 0:00:06]} b6 {[%emt 0:00:09]} 4. g3 {[%emt 0:00:10]} Bb7 {[%emt 0:00:08]} 5. Bg2 {[%emt 0:00:05]} Be7 {[%emt 0:00:07]} 6. O-O {[%emt 0:00:11]} O-O {[%emt 0:00:05]} 7. Nc3 {[%emt 0:00:17]} Ne4 {[%emt 0:00:44]} 8. Bd2 {[%emt 0:00:05]} d6 {[%emt 0:03:18]} 9. Qc2 {[%emt 0:04:13]} Nxc3 {[%emt 0:01:00]} 10. Bxc3 {[%emt 0:00:59][%cal Of3g5] Ng5! would be deadly.} f5 {[%emt 0:00:35]} 11. Ne1 {[%emt 0:01:13]} Bxg2 {[%emt 0:00:34] White is slightly better.} 12. Nxg2 {[%emt 0:00:08]} Qe8 {[%emt 0:25:41]} 13. e4 {[%emt 0:02:25]} Qf7 {[%emt 0:00:25]} 14. Rae1 {[%emt 0:05:30]} Bg5 {[%emt 0:09:53]} 15. f4 {[%emt 0:04:14]} Bf6 {[%emt 0:02:32]} 16. e5 {[%emt 0:07:35]} dxe5 {[%emt 0:00:12]} (16... Be7 $16) 17. fxe5 $18 {[%emt 0:00:05]} (17. dxe5 $6 Be7 $11) 17... Bg5 {[%emt 0:00:13] [#]} 18. d5 {[%emt 0:02:32]} Qe7 $16 {[%emt 0:15:09]} 19. dxe6 {[%emt 0:11:29]} (19. Bd2 {simplifies} Bxd2 20. Qxd2 Na6 21. Nf4) 19... g6 {[%emt 0:02:46] [#]} (19... Qc5+ $16 20. Kh1 Qxc4) 20. g4 $1 {[%emt 0:11:03][%mdl 512]} fxg4 {[%emt 0:06:23]} (20... f4 21. Qe4) 21. Qe4 {[%emt 0:12:33][%csl LRa8,LRg4] Active counter play!} Na6 {[%emt 0:02:20]} 22. Qxg4 {[%emt 0:00:17]} Rae8 $2 {[%emt 0:10:25] [#]} (22... Rxf1+ $16 {is a better defense.} 23. Rxf1 Rf8) 23. Rf7 $1 {[%emt 0:10:18][%mdl 512]} Rxf7 {[%emt 0:00:29]} 24. exf7+ {[%emt 0:00:04]} Kxf7 {[%emt 0:00:13] [#]} 25. e6+ {[%emt 0:10:15]} ({Resist} 25. h4 Bh6 $14) ({White should try} 25. b4 $1 $16 Kg8 26. Rd1) 25... Kg8 $11 {[%emt 0:00:09]} 26. Rf1 {[%emt 0:00:14] And now Rf7 would win.} ({Much worse is} 26. Qd4 Qc5 $17) 26... Bh6 {[%emt 0:01:54]} 27. Qh3 {[%emt 0:01:55]} ({Much weaker is} 27. Qd4 Qc5 28. Nf4 c6 $17) 27... Qc5+ {[%emt 0:05:43]} 28. Kh1 {[%emt 0:06:42]} Qxc4 {[%emt 0:00:13][%cal Rc4f1]} 29. Rf6 {[%emt 0:07:58] [#]} (29. Kg1 $1 $11 Bf8 30. Rf7) 29... Rf8 $1 $19 {[%emt 0:05:05][%cal Oc4f1] ( -> ...Qf1+!)} 30. Rxf8+ {[%emt 0:01:47]} (30. Ne1 Qe4+) 30... Bxf8 {[%emt 0:00:13][%cal Rc4f1]} 31. Qf3 {[%emt 0:00:45] Prevents Qf1+. Quite a comeback for Black.   Weighted Error Value: White=0.33/Black=0.25 (precise)} 1/2-1/2

[Event "35th Roquetas Festival 2024"]
[Site "Roquetas de Mar"]
[Date "2024.01.02"]
[Round "1.9"]
[White "Korneev, Oleg"]
[Black "Lazaro Azcutia, Miguel"]
[Result "1-0"]
[ECO "C89"]
[WhiteElo "2474"]
[BlackElo "2044"]
[Annotator "TA"]
[PlyCount "88"]
[EventDate "2024.01.02"]
[EventType "swiss"]
[EventCountry "ESP"]
[SourceTitle "playchess.com"]
[Source "ChessBase"]
[SourceQuality "1"]
[TimeControl "5400+30"]

{[%evp 17,88,0,0,0,0,0,0,0,0,0,24,18,25,16,12,25,14,12,64,71,65,60,56,64,73,71,94,110,90,97,156,166,249,235,259,256,252,281,276,260,325,300,460,307,326,320,560,545,539,521,786,786,770,677,1751,202,1466,880,869,861,5222,5213,819,746,727,656,700,695,651,511,1282,1124,29975]} 1. e4 {[%emt 0:08:22]} e5 {[%emt 0:00:15]} 2. Nf3 {[%emt 0:00:15]} Nc6 {[%emt 0:00:05]} 3. Bb5 {[%emt 0:00:36]} a6 {[%emt 0:00:13]} 4. Ba4 {[%emt 0:08:52]} Nf6 {[%emt 0:00:06]} 5. O-O {[%emt 0:00:06]} Be7 {[%emt 0:00:13]} 6. Re1 {[%emt 0:00:15]} b5 {[%emt 0:00:18]} 7. Bb3 {[%emt 0:00:02]} O-O {[%emt 0:00:12]} 8. c3 {[%emt 0:00:12] 8.a4 is more fashionable.} d5 9. d4 {[%emt 0:00:04]} exd4 {[%emt 0:02:22]} 10. e5 {[%emt 0:00:03] C89: Closed Ruy Lopez: Marshall Attack.} Ne4 {[%emt 0:00:12]} 11. cxd4 {[%emt 0:00:03]} Bf5 {[%emt 0:01:13]} 12. Nc3 {[%emt 0:00:07] The position is equal.} Nxc3 {[%emt 0:00:59]} 13. bxc3 {[%emt 0:01:20]} Qd7 {[%emt 0:03:27] is the legacy move (13...Na5).} 14. Bg5 {[%emt 0:04:04]} Bxg5 {[%emt 0:08:53]} 15. Nxg5 {[%emt 0:00:02]} h6 {[%emt 0:03:26]} 16. Nf3 {[%emt 0:00:09]} Na5 {[%emt 0:00:06]} 17. Nh4 {[%emt 0:22:12]} Bh7 {[%emt 0:04:53]} (17... Nxb3 $11 18. axb3 a5) 18. Bc2 $14 {[%emt 0:00:18]} Bxc2 {[%emt 0:02:03]} 19. Qxc2 {[%emt 0:00:49]} Nc4 {[%emt 0:01:35]} 20. f4 {[%emt 0:03:55]} Qg4 {[%emt 0:23:02] Wards off f5} 21. Qf2 {[%emt 0:03:55] White stays focused until the end.} f5 {[%emt 0:02:13] [#]} 22. h3 $146 {[%emt 0:00:58]} ({Predecessor:} 22. Rad1 a5 23. Rd3 Ra6 24. Rg3 Qh5 25. e6 Nd6 26. e7 Re8 27. Rg6 {0-1 Ari,Z (2192)-Haznedaroglu,K (2451) TUR-chT Kocaeli 2015 (12.7)}) 22... Qh5 {[%emt 0:00:28]} 23. Kh2 {[%emt 0:07:50]} Rab8 {[%emt 0:07:40]} ({Black should play} 23... Nd2) 24. Re2 $16 {[%emt 0:02:40]} b4 {[%emt 0:04:23]} (24... Kh7 $142 25. Rg1 g5 26. fxg5 Qxg5) 25. cxb4 $18 {[%emt 0:00:08] Threatens to win with Rg1.} Rxb4 {[%emt 0:00:06] [#]} 26. Rg1 $1 {[%emt 0:00:20][%cal Ba1g1,Bg1g2,Bg2e2][%mdl 32] Hoping for g4.} Rfb8 {[%emt 0:02:14]} 27. g4 {[%emt 0:00:13]} fxg4 {[%emt 0:01:33]} 28. hxg4 {[%emt 0:00:15]} Qe8 {[%emt 0:01:41]} 29. Qf3 {[%emt 0:14:43] g5 is the strong threat.} c6 {[%emt 0:08:07]} (29... Qc6 $142 30. f5 Rb2) 30. f5 {[%emt 0:01:12]} Rb2 {[%emt 0:05:18]} 31. Rgg2 {[%emt 0:00:30]} Qd8 {[%emt 0:01:36] Repels g5} (31... Rxe2 {keeps fighting.} 32. Rxe2 Qf8) 32. f6 {[%emt 0:05:14]} gxf6 {[%emt 0:01:42]} 33. Qf5 {[%emt 0:01:30] And now Qg6+ would win.} Rxe2 {[%emt 0:05:08]} 34. Qg6+ {[%emt 0:00:53]} Kh8 {[%emt 0:02:18]} 35. Rxe2 {[%emt 0:02:37]} fxe5 {[%emt 0:02:18]} 36. Qxh6+ {[%emt 0:01:03]} Kg8 {[%emt 0:00:04]} 37. Rf2 {[%emt 0:02:47] White threatens Qg6+ and mate. White is clearly winning.} Rb7 {[%emt 0:04:02]} 38. Qe6+ {[%emt 0:03:38]} (38. Qxc6 Qxh4+ 39. Kg2 Qxg4+ 40. Kh1 Qh3+ 41. Kg1 Rb1+) 38... Kg7 {[%emt 0:02:59]} 39. Kg3 {[%emt 0:03:37] Intending Nf5+ and mate.} (39. Qxc6 {gets mated.} Qxh4+ 40. Kg2 Ne3+ 41. Kf3 Qxg4+ 42. Kxe3 Qe4+ 43. Kd2 Rb2+ 44. Kd1 Qh1+) 39... Nd6 {[%emt 0:01:45] [#]} 40. Qxd6 $3 {[%emt 0:02:05][%mdl 576] Remove Defender, Decoy} Qxd6 {[%emt 0:00:35]} 41. Nf5+ {[%emt 0:00:02]} Kg6 {[%emt 0:00:13]} 42. Nxd6 {[%emt 0:00:02]} Re7 {[%emt 0:00:12]} 43. Nf5 {[%emt 0:00:10]} Re8 {[%emt 0:00:30]} (43... Re6 $142 44. dxe5 Rxe5) 44. Rc2 {[%emt 0:01:28]} exd4 {[%emt 0:00:51] Weighted Error Value: White=0.17 (very precise) /Black=0.37} 1-0

[Event "35th Roquetas Festival 2024"]
[Site "Roquetas de Mar"]
[Date "2024.01.02"]
[Round "1.10"]
[White "Alvarez Morales, Miguel"]
[Black "Camacho Collados, Marcos"]
[Result "0-1"]
[ECO "E00"]
[WhiteElo "2043"]
[BlackElo "2466"]
[Annotator "TA"]
[PlyCount "90"]
[EventDate "2024.01.02"]
[EventType "swiss"]
[EventCountry "ESP"]
[SourceTitle "playchess.com"]
[Source "ChessBase"]
[SourceQuality "1"]
[TimeControl "5400+30"]

{[%evp 9,90,-33,-29,-35,-43,-34,-33,-33,-33,-34,-29,-36,-30,-31,-35,-33,-33,-39,-23,-17,-22,-34,-43,-48,-41,-40,0,0,0,0,0,0,0,0,2,-10,0,-34,-40,-32,-20,-36,-42,-81,-83,-78,-48,-33,-45,-63,-33,-33,0,-41,-24,-127,-120,-125,-125,-151,-145,-247,-317,-314,-302,-298,-298,-384,-384,-384,-390,-384,-395,-893,-893,-845,-745,-1586,-1263,-1833,-1706,-1635,-1632]} 1. d4 {[%emt 0:00:04]} Nf6 {[%emt 0:00:17]} 2. c4 {[%emt 0:00:05]} e6 {[%emt 0:00:17]} 3. a3 {[%emt 0:00:12]} d5 {[%emt 0:02:20]} 4. Nf3 {[%emt 0:00:07]} dxc4 {[%emt 0:10:53]} 5. Qa4+ {[%emt 0:02:40]} Nbd7 {[%emt 0:00:48]} 6. Nc3 {[%emt 0:02:39] D30: Queen's Gambit Declined: Systems without Nc3.} a6 {[%emt 0:06:16] [#]} 7. Bg5 $146 {[%emt 0:04:34]} ({Predecessor:} 7. Qxc4 b5 8. Qd3 c5 9. e3 Bb7 10. Be2 c4 11. Qd2 Qa5 12. Nb1 Qb6 13. Nc3 {0-1 Clemente Espinola,B-Frutos Moreno,C (1667) Coronel Oviedo Friedmann Cup 2023 (1)}) 7... Be7 {[%emt 0:14:26]} 8. Qxc4 {[%emt 0:00:19] Black is slightly better.} b5 {[%emt 0:04:19]} 9. Qd3 {[%emt 0:00:37]} c5 {[%emt 0:01:42]} 10. e3 {[%emt 0:00:12]} Bb7 {[%emt 0:01:01]} 11. Be2 {[%emt 0:00:25]} Rc8 {[%emt 0:03:51]} 12. O-O {[%emt 0:01:07]} O-O {[%emt 0:08:01]} 13. Rad1 {[%emt 0:00:43]} b4 {[%emt 0:01:43]} 14. axb4 {[%emt 0:01:28]} cxb4 {[%emt 0:00:10]} 15. Na4 {[%emt 0:01:44]} Be4 {[%emt 0:03:25]} 16. Qd2 {[%emt 0:03:42]} (16. Qxa6 $2 Ra8 17. Qb5 Ra5 $19) 16... Rc2 {[%emt 0:08:47] Wards off Rc1} 17. Qe1 {[%emt 0:00:11]} Qa5 {[%emt 0:00:50] Wards off Ne5} (17... Bc6 $5 {[%cal Rc6a4]} 18. Ra1 Bb5 19. Bxb5 axb5 $15) 18. Bxf6 {[%emt 0:01:12]} Nxf6 {[%emt 0:00:58]} 19. Ra1 {[%emt 0:03:01][%cal Oa4c5] [#] aiming for Nc5!} Qc7 {[%emt 0:01:19] Dodges Nc5} 20. Bd1 {[%emt 0:02:25] Repels b3} Rc1 $36 {[%emt 0:10:25][%mdl 2048] Black has the initiative.} 21. Rxc1 {[%emt 0:00:15]} Qxc1 {[%emt 0:00:02]} 22. Qe2 {[%emt 0:11:19]} Qc8 {[%emt 0:05:27] Prevents Nc5} 23. Nd2 {[%emt 0:05:46]} Bc6 {[%emt 0:01:08]} 24. Nc4 {[%emt 0:09:46]} Bb5 {[%emt 0:01:35] A strong pair of Bishops.} (24... Qa8 {simplifies} 25. f3 Bb5 26. b3 Bxa4 27. bxa4 Nd5) 25. Bb3 {[%emt 0:03:25]} Qc6 {[%emt 0:00:44]} 26. Ra1 {[%emt 0:03:19][%cal Oc4e5]} Rc8 {[%emt 0:00:37][%cal Rb5c4] Black is more active.} 27. Nab6 {[%emt 0:00:11]} Rb8 {[%emt 0:01:15][%cal Bc8b8,Bb8b7,Bb7c7,Bc7c1][%mdl 32]} (27... Rc7 $5 {[%cal Rc6b6]} 28. Qf3 Bd8 $15) 28. Na4 {[%emt 0:01:03]} Nd7 {[%emt 0:06:52] Threatens to win with ...Rc8.} 29. Qf3 {[%emt 0:01:14]} Qc8 {[%emt 0:00:09]} 30. Nd2 {[%emt 0:04:46]} Rb7 {[%emt 0:02:00]} 31. h4 {[%emt 0:06:07]} Rc7 {[%emt 0:00:23]} 32. Ne4 {[%emt 0:00:39]} (32. g3 $11 {keeps the balance.}) 32... Rc1+ $17 {[%emt 0:00:53]} 33. Rxc1 {[%emt 0:00:05]} Qxc1+ {[%emt 0:00:03]} 34. Kh2 {[%emt 0:00:04]} Qc6 {[%emt 0:01:58]} ({Resist} 34... Bxh4 35. Nd6 Bf6 36. Nc5 $16) 35. Ng5 {[%emt 0:04:09] [#]} (35. Nac5 $17) 35... Bxg5 $1 $19 {[%emt 0:00:29]} (35... Bxa4 {leads to mate.} 36. Qxf7+ (36. Nxf7 $2 {too greedy.} Qxf3 37. gxf3 Bxb3 $19) 36... Kh8 37. Qxe7 Qc8 38. Nf7+ Kg8 39. Nd8 Qc7+ 40. g3) 36. Qxc6 {[%emt 0:00:07]} Bxc6 {[%emt 0:00:37]} 37. hxg5 {[%emt 0:00:03][%mdl 4096] Endgame KBN-KBN} a5 {[%emt 0:00:14]} 38. Nc5 {[%emt 0:03:20]} Nxc5 {[%emt 0:00:05]} 39. dxc5 {[%emt 0:00:01] KB-KB} a4 {[%emt 0:01:04]} 40. Bc2 {[%emt 0:00:01]} a3 {[%emt 0:00:55]} 41. bxa3 {[%emt 0:00:15]} (41. Bb1) 41... bxa3 {[%emt 0:00:03][%cal Bb4a3,Ba3a2][%mdl 32] Hoping for ...a2. Black is clearly winning.} 42. Bb1 {[%emt 0:00:02]} Kf8 {[%emt 0:00:24]} 43. f3 {[%emt 0:00:40]} Bd5 {[%emt 0:00:15]} 44. c6 {[%emt 0:00:32]} Ke7 {[%emt 0:00:15] And now ...Kd6 would win.} 45. e4 {[%emt 0:00:05]} a2 {[%emt 0:00:15] Weighted Error Value: White=0.47/Black=0.17 (very precise)} 0-1

[Event "35th Roquetas Festival 2024"]
[Site "Roquetas de Mar"]
[Date "2024.01.02"]
[Round "1.11"]
[White "Macias Pino, Diego"]
[Black "Arce Gonzalez, Dario"]
[Result "1-0"]
[ECO "B12"]
[WhiteElo "2456"]
[BlackElo "2037"]
[Annotator "RC"]
[PlyCount "53"]
[EventDate "2024.01.02"]
[EventType "swiss"]
[EventCountry "ESP"]
[SourceTitle "playchess.com"]
[Source "ChessBase"]
[SourceQuality "1"]
[TimeControl "5400+30"]

1. e4 {[%emt 0:00:02]} c6 {[%emt 0:00:04]} 2. d4 d5 {[%emt 0:00:05]} 3. e5 {[%emt 0:00:34]} c5 {[%emt 0:00:06]} 4. Nf3 {[%emt 0:00:36]} cxd4 {[%emt 0:00:51]} 5. Qxd4 {[%emt 0:00:04]} Nc6 {[%emt 0:00:44]} 6. Qf4 {[%emt 0:00:03]} e6 {[%emt 0:00:21]} 7. Bd3 {[%emt 0:00:39]} Nb4 {[%emt 0:02:10]} 8. Nc3 {[%emt 0:00:02]} Nxd3+ {[%emt 0:01:03]} 9. cxd3 {[%emt 0:00:27]} f5 {[%emt 0:22:31]} 10. Bd2 {[%emt 0:10:02]} Bd7 {[%emt 0:05:05]} 11. Qg3 {[%emt 0:03:14]} Qb6 {[%emt 0:06:38]} 12. O-O {[%emt 0:00:56]} Ne7 {[%emt 0:01:51]} 13. Ne2 {[%emt 0:05:51]} h6 {[%emt 0:14:18]} 14. b4 {[%emt 0:04:29]} O-O-O {[%emt 0:04:44]} 15. a4 {[%emt 0:07:13]} Kb8 {[%emt 0:04:31]} 16. a5 {[%emt 0:06:12]} Qa6 {[%emt 0:01:21]} 17. Nfd4 {[%emt 0:00:06]} g5 {[%emt 0:04:26]} 18. Rfb1 {[%emt 0:05:37]} f4 {[%emt 0:05:32]} 19. Qh3 {[%emt 0:02:10]} g4 {[%emt 0:00:42]} 20. Qxg4 {[%emt 0:00:51]} Qxd3 {[%emt 0:00:13]} 21. Bxf4 {[%emt 0:01:30]} Rg8 {[%emt 0:01:42]} 22. Qh4 {[%emt 0:01:51]} Qg6 {[%emt 0:02:40]} 23. Bg3 {[%emt 0:01:15]} Rc8 {[%emt 0:04:01]} 24. Nf4 {[%emt 0:00:43]} Qf7 {[%emt 0:00:48]} 25. Qf6 {[%emt 0:00:56]} Qh7 {[%emt 0:03:22]} 26. Nfxe6 {[%emt 0:00:52]} Rg6 {[%emt 0:01:56]} 27. Nxf8 {[%emt 0:00:09]} 1-0